bitfinex-derivatives/quotes_SOLF0:USTF0_20250221
["timestamp","ask_amount","ask_price","bid_price","bid_amount"]
[1740165682880,5.8836,169.96,169.95,0.04307624]
[1740165683067,0.04278027,169.99,169.95,0.04307624]
[1740165683878,5.8836,169.96,169.95,0.04307624]
[1740165684677,1.7435,169.98,169.89,42.26408305]
[1740165685772,0.04039811,169.95,169.92,0.04377139]
[1740165686374,5.8846,169.93,169.92,0.04377139]
[1740165689176,0.04039811,169.95,169.82,24.01977836]
[1740165689376,5.886,169.9,169.82,24.01977836]
[1740165689876,1.7435,169.98,169.82,24.01977836]
[1740165690580,0.03886632,169.92,169.88,0.04008971]
[1740165690780,5.8856,169.91,169.88,0.04008971]
[1740165690979,0.03886632,169.92,169.88,0.04008971]
[1740165692081,5.8859,169.9,169.88,0.04008971]
[1740165692783,0.03886632,169.92,169.88,0.04008971]
[1740165693082,0.03886632,169.92,169.88,24.05986807]
[1740165693583,0.03886632,169.92,169.88,0.04008971]
[1740165694579,5.886,169.89,169.88,0.04008971]
[1740165695485,0.03886632,169.92,169.79,25.86237836]
[1740165695880,24.01977836,169.95,169.79,25.86237836]
[1740165696083,1.7711,169.96,169.77,197.08165911]
[1740165696084,24.01977836,169.92,169.77,197.08165911]
[1740165696282,195.7252,169.91,169.77,197.08165911]
[1740165696685,5.888,169.84,169.82,0.04274142]
[1740165697184,0.04189379,169.86,169.82,0.04274142]
[1740165698087,5.92899379,169.86,169.82,0.04274142]
[1740165698294,0.04189379,169.86,169.82,24.06251978]
[1740165698583,5.8855,169.91,169.85,24.01977836]
[1740165698786,3.5636,169.95,169.85,24.01977836]
[1740165699482,3.5636,169.95,169.78,1.7712]
[1740165699682,3.5636,169.95,169.85,0.03905622]
[1740165700088,0.04183515,169.92,169.85,0.03905622]
[1740165700279,0.04183515,169.92,169.87,24.01977836]
[1740165702484,0.04183515,169.92,169.85,0.03905622]
[1740165702485,0.04183515,169.92,169.9,24.01977836]
[1740165703089,7.6286,169.99,169.9,24.01977836]
[1740165703285,1.7461,169.99,169.87,24.01977836]
[1740165703488,5.8833,169.97,169.87,24.01977836]
[1740165703688,1.7461,169.99,169.87,24.01977836]
[1740165704091,0.04116616,169.95,169.91,0.04294251]
[1740165705786,5.8843,169.94,169.91,0.04294251]
[1740165706189,0.04116616,169.95,169.91,0.04294251]
[1740165706389,5.8848,169.93,169.91,0.04294251]
[1740165706593,0.04116616,169.95,169.91,0.04294251]
[1740165706791,0.04116616,169.95,169.8,24.01977836]
[1740165706995,24.01977836,169.98,169.8,24.01977836]
[1740165707292,1.6978,169.97,169.8,24.01977836]
[1740165707590,1.6978,169.97,169.77,197.24595911]
[1740165707591,24.01977836,169.95,169.77,197.24595911]
[1740165707989,0.04108796,169.88,169.84,0.04292963]
[1740165708492,0.04108796,169.88,169.84,0.04309751]
[1740165708686,0.04108796,169.88,169.77,197.08165911]
[1740165708887,194.0,169.91,169.77,197.08165911]
[1740165709285,194.0,169.91,169.77,196.31412427]
[1740165709493,24.01977836,169.89,169.77,196.31412427]
[1740165709692,5.8887,169.82,169.77,196.31412427]
[1740165709992,5.8887,169.82,169.81,0.04126148]
[1740165710194,1.8174,169.88,169.71,24.01977836]
[1740165710195,0.03713917,169.81,169.71,24.01977836]
[1740165710493,1.8336,169.85,169.71,24.01977836]
[1740165710696,5.89,169.78,169.71,24.01977836]
[1740165710896,5.89,169.78,169.69,1.8715]
[1740165711192,1.8336,169.85,169.69,1.8715]
[1740165711393,0.04077805,169.75,169.72,0.04452291]
[1740165711585,1.8336,169.85,169.72,0.04452291]
[1740165711786,0.04390517,169.75,169.72,0.04073343]
[1740165711992,1.8336,169.85,169.71,24.01977836]
[1740165712190,0.04107336,169.75,169.71,24.01977836]
[1740165712390,1.8336,169.85,169.71,24.01977836]
[1740165712586,5.8891,169.8,169.71,24.05706487]
[1740165712792,0.03855763,169.8,169.71,24.01977836]
[1740165713097,5.92775763,169.8,169.74,0.04265914]
[1740165714399,5.8895,169.79,169.74,0.04265914]
[1740165714590,0.03855763,169.8,169.74,0.04265914]
[1740165714789,5.92785763,169.8,169.74,0.04265914]
[1740165715904,0.03855763,169.8,169.74,0.04265914]
[1740165716095,0.03855763,169.8,169.74,24.0624375]
[1740165717491,0.03855763,169.8,169.74,0.04265914]
[1740165719003,5.8908,169.76,169.74,0.04265914]
[1740165719301,3.6614,169.79,169.74,0.04265914]
[1740165720003,5.8906,169.76,169.74,0.04265914]
[1740165720298,3.6614,169.79,169.74,0.04265914]
[1740165720602,3.6614,169.79,169.65,24.01977836]
[1740165720803,3.6614,169.79,169.68,24.01977836]
[1740165721004,9.5511,169.79,169.68,24.01977836]
[1740165721404,3.6614,169.79,169.68,24.01977836]
[1740165721605,0.03852326,169.75,169.68,24.01977836]
[1740165724701,0.03852326,169.75,169.71,24.01977836]
[1740165726406,1.7374,169.82,169.71,24.01977836]
[1740165726809,5.8893,169.8,169.71,24.01977836]
[1740165727010,1.7374,169.82,169.71,24.01977836]
[1740165727611,0.04090905,169.78,169.75,0.04038702]
[1740165730106,5.8905,169.76,169.75,0.04038702]
[1740165731405,5.8918,169.73,169.67,1.7386]
[1740165731605,24.01977836,169.8,169.63,24.01977836]
[1740165731900,24.01977836,169.77,169.62,1.8324]
[1740165732100,5.8925,169.71,169.62,1.8324]
[1740165732309,24.01977836,169.77,169.62,1.8324]
[1740165732510,1.7526,169.76,169.62,1.8324]
[1740165732710,0.04432427,169.68,169.62,1.8324]
[1740165735510,0.04432427,169.68,169.66,24.01977836]
[1740165736913,0.04432427,169.68,169.63,24.01977836]
[1740165738009,1.7177,169.78,169.66,24.01977836]
[1740165738310,1.7033,169.81,169.72,24.01977836]
[1740165738811,3.4363,169.82,169.72,24.01977836]
[1740165739204,0.04209471,169.79,169.75,0.03908488]
[1740165739609,0.04209471,169.79,169.67,8.8]
[1740165739811,194.0,169.81,169.67,8.8]
[1740165740215,5.8917,169.73,169.67,8.8]
[1740165740416,25.73127836,169.8,169.63,25.82237836]
[1740165740613,194.0,169.79,169.63,25.82237836]
[1740165740815,0.0385878,169.73,169.63,1.8026]
[1740165741018,0.0385878,169.73,169.6,69.797716]
[1740165741410,0.0406948,169.68,169.6,69.797716]
[1740165743020,0.0406948,169.68,169.6,45.77793764]
[1740165743722,5.8939,169.67,169.6,45.77793764]
[1740165744428,5.8941,169.66,169.6,45.77793764]
[1740165744619,0.0406948,169.68,169.6,45.77793764]
[1740165744831,0.0406948,169.68,169.52,24.01977836]
[1740165744832,0.0406948,169.68,169.54,24.01977836]
[1740165745018,24.01977836,169.71,169.54,24.01977836]
[1740165745319,0.04442388,169.64,169.54,24.01977836]
[1740165745514,0.04442388,169.64,169.55,0.4174]
[1740165746424,0.04442388,169.64,169.57,24.01977836]
[1740165747429,0.04442388,169.64,169.55,0.4174]
[1740165747827,0.04442388,169.64,169.54,24.01977836]
[1740165748023,0.04442388,169.64,169.47,154.18]
[1740165748223,24.01977836,169.65,169.48,24.01977836]
[1740165748422,0.03734446,169.57,169.51,24.01977836]
[1740165748622,5.2821,169.64,169.52,1.7909]
[1740165748823,0.04195228,169.56,169.52,1.7909]
[1740165749028,5.2821,169.64,169.54,24.01977836]
[1740165749228,0.03842019,169.56,169.54,24.01977836]
[1740165749430,5.8941,169.66,169.54,24.01977836]
[1740165749729,194.0,169.69,169.54,24.01977836]
[1740165749930,5.8946,169.65,169.54,24.01977836]
[1740165750627,0.03876099,169.61,169.58,0.04236821]
[1740165753339,3.5564,169.7,169.6,24.01977836]
[1740165753542,5.8927,169.7,169.6,24.01977836]
[1740165753739,5.8927,169.7,169.61,1.8749]
[1740165753935,4.99699,169.73,169.61,1.8749]
[1740165754141,5.8924,169.71,169.61,1.8749]
[1740165754341,4.99699,169.73,169.61,1.8749]
[1740165754542,0.03987968,169.68,169.64,0.04209918]
[1740165756037,5.8937,169.67,169.64,0.04209918]
[1740165756444,0.03987968,169.68,169.64,0.04209918]
[1740165769462,5.8943,169.66,169.64,0.04209918]
[1740165770054,5.8943,169.65,169.64,0.04209918]
[1740165770262,5.8943,169.65,169.57,24.01977836]
[1740165771054,5.8948,169.64,169.57,24.01977836]
[1740165771251,194.0,169.72,169.54,25.76227836]
[1740165771252,24.01977836,169.71,169.54,25.76227836]
[1740165771456,0.03739241,169.62,169.59,0.0403214]
[1740165771651,24.01977836,169.71,169.54,25.76227836]
[1740165771859,0.04062789,169.62,169.59,0.0403214]
[1740165772059,194.0,169.7,169.54,25.76227836]
[1740165772258,5.8958,169.61,169.59,0.0403214]
[1740165772460,195.8845,169.69,169.54,25.76227836]
[1740165775562,5.8957,169.61,169.58,0.03807515]
[1740165775758,5.93339545,169.62,169.58,0.03807515]
[1740165776461,0.03799545,169.62,169.58,0.03807515]
[1740165777966,0.03799545,169.62,169.6,24.01977836]
[1740165778958,0.03799545,169.62,169.58,0.03807515]
[1740165781863,0.03799545,169.62,169.6,15.02276423]
[1740165782862,1.8845,169.69,169.6,30.04552846]
[1740165783062,1.8845,169.69,169.64,15.02276423]
[1740165784161,0.04250104,169.68,169.65,0.03940757]
[1740165785667,0.04250104,169.68,169.67,15.02276423]
[1740165788264,0.04250104,169.68,169.65,0.03940757]
[1740165788865,0.04250104,169.68,169.67,15.02276423]
[1740165790570,3.19649,169.73,169.67,15.02276423]
[1740165791168,3.19649,169.73,169.65,0.03940757]
[1740165791475,3.19649,169.73,169.69,15.02276423]
[1740165791868,3.23684314,169.73,169.69,15.06715606]
[1740165793072,3.23684314,169.73,169.69,0.04439183]
[1740165793273,9.12844314,169.73,169.69,0.04439183]
[1740165793475,3.23684314,169.73,169.63,15.02276423]
[1740165793675,3.19649,169.73,169.6,15.02276423]
[1740165794169,209.02276423,169.72,169.58,15.02276423]
[1740165794567,0.04375316,169.67,169.56,154.2]
[1740165794772,0.04375316,169.67,169.63,0.04503463]
[1740165795074,0.03973365,169.67,169.56,154.2]
[1740165795473,197.6297,169.68,169.56,154.2]
[1740165796073,0.03973392,169.64,169.6,0.03139142]
[1740165796977,5.93443392,169.64,169.6,0.03139142]
[1740165797177,0.03973392,169.64,169.6,0.03139142]
[1740165799575,5.93443392,169.64,169.6,0.03139142]
[1740165800076,5.8953,169.63,169.6,0.03139142]
[1740165800679,5.93443392,169.64,169.6,0.03139142]
[1740165801080,0.03973392,169.64,169.6,0.03139142]
[1740165801777,5.93443392,169.64,169.6,0.03139142]
[1740165802580,5.8953,169.63,169.6,0.03139142]
[1740165803173,0.03973392,169.64,169.6,0.03139142]
[1740165803379,5.8955,169.62,169.6,0.03139142]
[1740165803879,5.8951,169.63,169.6,0.03139142]
[1740165804079,0.03973392,169.64,169.6,0.03139142]
[1740165810279,0.03973392,169.64,169.61,15.02276423]
[1740165810687,5.3233,169.74,169.6,15.05415565]
[1740165810983,5.3233,169.74,169.64,15.02276423]
[1740165811588,5.892,169.72,169.64,15.02276423]
[1740165811884,0.04062739,169.7,169.67,15.06658887]
[1740165814882,0.04062739,169.7,169.67,0.04382464]
[1740165818391,0.04062739,169.7,169.61,15.02276423]
[1740165818697,16.88406423,169.72,169.58,15.02276423]
[1740165818997,15.02276423,169.69,169.57,43.50379219]
[1740165819197,194.0,169.68,169.57,43.50379219]
[1740165819698,0.0396547,169.64,169.61,0.02730071]
[1740165823297,0.0396547,169.64,169.57,43.50379219]
[1740165824201,1.8756547,169.64,169.57,43.50379219]
[1740165825197,5.8958,169.61,169.48,8.42]
[1740165825398,1.836,169.64,169.55,15.02276423]
[1740165825599,0.04373387,169.57,169.55,15.02276423]
[1740165825795,5.8956,169.62,169.55,15.02276423]
[1740165826002,0.04454175,169.58,169.55,15.02276423]
[1740165831205,0.04454175,169.58,169.46,2.303]
[1740165831405,0.04454175,169.58,169.52,15.02276423]
[1740165838308,0.04454175,169.58,169.55,15.02276423]
[1740165840305,0.04454175,169.58,169.52,15.02276423]
[1740165841003,5.94154175,169.58,169.52,15.02276423]
[1740165841708,5.8971,169.57,169.52,15.02276423]
[1740165842103,0.04454175,169.58,169.52,15.02276423]
[1740165844311,5.94164175,169.58,169.52,15.02276423]
[1740165844512,0.04454175,169.58,169.52,15.02276423]
[1740165845916,0.04454175,169.58,169.55,15.02276423]
[1740165846605,0.04454175,169.58,169.56,9.61858874]
[1740165847506,0.04454175,169.58,169.55,9.61858874]
[1740165848105,5.94164175,169.58,169.55,9.61858874]
[1740165848604,5.8972,169.57,169.53,9.61858874]
[1740165848809,1.8584,169.57,169.5,9.61858874]
[1740165849209,5.8978,169.55,169.5,9.61858874]
[1740165849409,5.8978,169.55,169.52,9.61858874]
[1740165849610,0.03861752,169.54,169.37,154.3]
[1740165849805,5.8989,169.52,169.38,8.36]
[1740165850015,0.04438493,169.47,169.46,9.61858874]
[1740165850421,9.61858874,169.55,169.46,9.61858874]
[1740165850715,9.61858874,169.53,169.46,9.61858874]
[1740165850916,0.04474584,169.52,169.46,9.61858874]
[1740165851112,5.8995,169.5,169.44,9.61858874]
[1740165851321,9.61858874,169.51,169.42,9.61858874]
[1740165851519,13.10128874,169.49,169.4,9.61858874]
[1740165851816,7.6829,169.48,169.42,9.61858874]
[1740165852010,1.7825,169.48,169.36,1.7372]
[1740165852210,3.4827,169.49,169.46,9.61858874]
[1740165852417,1.7711,169.49,169.46,9.61858874]
[1740165852615,0.03779888,169.49,169.45,15.04428508]
[1740165852817,0.03779888,169.49,169.42,15.04428508]
[1740165853009,194.0,169.51,169.42,15.04428508]
[1740165853208,0.03875348,169.47,169.39,15.04428508]
[1740165853411,5.9018,169.44,169.39,15.04428508]
[1740165853918,0.037149,169.43,169.39,15.04428508]
[1740165854614,5.3541,169.5,169.42,15.04428508]
[1740165855208,1.8115,169.5,169.45,15.04428508]
[1740165855813,1.8115,169.5,169.46,0.037149]
[1740165856009,0.03888165,169.49,169.46,0.037149]
[1740165856518,0.03888165,169.49,169.48,15.04428508]
[1740165856709,1.7482,169.55,169.48,15.04428508]
[1740165856913,7.646,169.55,169.48,15.04428508]
[1740165857113,1.7482,169.55,169.48,15.04428508]
[1740165857313,1.7482,169.55,169.51,15.04428508]
[1740165857811,1.78903933,169.55,169.51,0.04175464]
[1740165859220,3.53315,169.53,169.51,0.04175464]
[1740165869822,3.53315,169.53,169.45,15.04428508]
[1740165870025,5.8999,169.5,169.45,15.04428508]
[1740165870326,3.53315,169.53,169.45,15.04428508]
[1740165870522,5.8998,169.5,169.45,15.04428508]
[1740165870724,3.53315,169.53,169.45,15.04428508]
[1740165870925,0.03968254,169.49,169.46,0.03427601]
[1740165872929,5.9002,169.48,169.46,0.03427601]
[1740165873524,5.93968254,169.49,169.46,0.03427601]
[1740165873824,0.03968254,169.49,169.46,0.03427601]
[1740165874031,5.93978254,169.49,169.46,0.03427601]
[1740165874424,0.03968254,169.49,169.46,0.03427601]
[1740165875030,5.9006,169.47,169.46,0.03427601]
[1740165875933,0.03968254,169.49,169.46,0.03427601]
[1740165877531,5.9002,169.48,169.46,0.03427601]
[1740165878826,0.03968254,169.49,169.46,0.03427601]
[1740165879030,0.03968254,169.49,169.43,15.04428508]
[1740165879824,0.03968254,169.49,169.4,169.38428508]
[1740165880222,0.03968254,169.49,169.4,15.04428508]
[1740165880428,194.0,169.48,169.37,15.04428508]
[1740165880723,3.702,169.47,169.37,15.04428508]
[1740165880930,0.03879361,169.44,169.37,15.04428508]
[1740165881927,0.03879361,169.44,169.35,5.9047]
[1740165882129,0.03879361,169.44,169.35,15.04428508]
[1740165882330,0.03879361,169.44,169.29,154.38]
[1740165882528,5.903,169.4,169.35,15.04428508]
[1740165882728,3.702,169.47,169.35,15.04428508]
[1740165883030,5.9027,169.41,169.36,20.94838508]
[1740165883332,5.9027,169.41,169.36,15.04428508]
[1740165883532,5.9027,169.41,169.36,20.94858508]
[1740165883728,5.9026,169.42,169.36,15.04428508]
[1740165883924,5.9026,169.42,169.37,5.904]
[1740165884129,0.04447385,169.43,169.39,15.04428508]
[1740165884329,1.8868,169.47,169.36,15.04428508]
[1740165884330,7.7875,169.47,169.42,15.04428508]
[1740165884830,1.8868,169.47,169.42,15.04428508]
[1740165885026,194.0,169.52,169.45,15.04428508]
[1740165885231,194.0,169.52,169.48,15.04428508]
[1740165885431,5.9003,169.48,169.47,0.04417292]
[1740165885632,0.03809154,169.5,169.47,0.04417292]
[1740165886430,5.9002,169.48,169.47,0.04417292]
[1740165888034,0.03809154,169.5,169.4,15.04428508]
[1740165888234,194.0,169.49,169.4,15.04428508]
[1740165889030,5.902,169.43,169.4,15.04428508]
[1740165889233,0.04067632,169.46,169.4,15.04428508]
[1740165890038,0.04067632,169.46,169.4,20.94728508]
[1740165890334,5.9019,169.44,169.4,20.94728508]
[1740165890638,0.04067632,169.46,169.43,15.04428508]
[1740165891034,194.0,169.49,169.43,20.94618508]
[1740165891340,0.04477783,169.46,169.43,15.04428508]
[1740165891735,0.04477783,169.46,169.45,5.9013]
[1740165892343,5.899,169.52,169.47,5.9003]
[1740165892531,5.899,169.52,169.47,20.94458508]
[1740165892734,194.0,169.56,169.47,15.04428508]
[1740165893137,1.7059,169.52,169.47,15.04428508]
[1740165893443,0.03915002,169.51,169.48,0.04345014]
[1740165894640,0.03915002,169.51,169.48,5.94335014]
[1740165894835,0.03915002,169.51,169.48,0.04345014]
[1740165895341,1.7059,169.55,169.5,15.04428508]
[1740165895639,1.7059,169.55,169.48,0.04345014]
[1740165895843,5.8991,169.52,169.48,0.04345014]
[1740165896044,1.7059,169.55,169.48,0.04345014]
[1740165896343,5.8983,169.54,169.48,5.94335014]
[1740165896533,0.04239465,169.52,169.48,5.94335014]
[1740165896738,0.04239465,169.52,169.48,0.04345014]
[1740165896937,0.04239465,169.52,169.5,15.04428508]
[1740165897341,0.04239465,169.52,169.5,20.94358508]
[1740165897935,0.04239465,169.52,169.5,15.04428508]
[1740165898543,0.04239465,169.52,169.5,20.94368508]
[1740165900043,0.04239465,169.52,169.51,5.8992]
[1740165900441,265.0,169.68,169.51,15.04428508]
[1740165900637,5.8954,169.62,169.58,15.04428508]
[1740165900841,199.3575,169.67,169.58,15.04428508]
[1740165901541,0.04063585,169.64,169.55,15.04428508]
[1740165901747,0.04063585,169.64,169.61,0.03930162]
[1740165901948,0.99481949,169.66,169.52,15.04428508]
[1740165902142,0.03776833,169.64,169.52,15.04428508]
[1740165902350,1.03258782,169.64,169.52,15.04428508]
[1740165902546,0.99481949,169.64,169.52,15.04428508]
[1740165902846,11.35671264,169.64,169.57,15.04428508]
[1740165903048,194.0,169.65,169.57,15.04428508]
[1740165903238,5.8964,169.59,169.54,15.04428508]
[1740165903743,0.03877088,169.58,169.55,0.03736461]
[1740165903939,194.0,169.64,169.55,0.03736461]
[1740165904138,0.04227373,169.58,169.54,15.04428508]
[1740165904337,0.04227373,169.58,169.57,20.94138508]
[1740165905542,194.0,169.64,169.57,15.04428508]
[1740165906346,5.8964,169.6,169.57,15.04428508]
[1740165906549,194.0,169.64,169.57,15.04428508]
[1740165906750,194.0,169.64,169.54,15.04428508]
[1740165907049,5.8971,169.58,169.57,0.04124449]
[1740165907542,0.04386395,169.6,169.57,0.04124449]
[1740165907950,5.8968,169.58,169.57,0.04124449]
[1740165909345,1.7589,169.59,169.57,0.04124449]
[1740165910148,7.6556,169.59,169.57,0.04124449]
[1740165910351,1.7589,169.59,169.57,0.04124449]
[1740165911254,1.7589,169.59,169.51,15.04428508]
[1740165911453,3.6513,169.58,169.48,15.04428508]
[1740165911751,5.8978,169.55,169.48,15.04428508]
[1740165911946,3.6513,169.58,169.48,15.04428508]
[1740165912250,3.6513,169.58,169.43,41.97109746]
[1740165912452,0.04202954,169.55,169.51,0.03856082]
[1740165912649,194.0,169.54,169.43,57.01538254]
[1740165912851,5.8986,169.53,169.48,5.9001]
[1740165913049,194.0,169.54,169.43,57.01538254]
[1740165913249,194.0,169.53,169.43,57.01538254]
[1740165913446,194.0,169.53,169.43,20.94588508]
[1740165913750,194.0,169.53,169.46,0.04227808]
[1740165914052,0.04356207,169.5,169.46,0.04227808]
[1740165914251,0.04356207,169.5,169.46,15.08656316]
[1740165914452,0.04356207,169.5,169.47,5.9003]
[1740165914749,0.04356207,169.5,169.46,15.08656316]
[1740165914750,0.04356207,169.5,169.49,15.04428508]
[1740165915152,0.04356207,169.5,169.47,5.9004]
[1740165915452,0.04356207,169.5,169.46,15.08656316]
[1740165915748,5.9,169.49,169.46,0.04227808]
[1740165916051,0.04356207,169.5,169.46,0.04227808]
[1740165916647,5.9005,169.48,169.46,0.04227808]
[1740165917450,0.04356207,169.5,169.46,0.04227808]
[1740165920153,5.9005,169.48,169.46,0.04227808]
[1740165920547,0.04356207,169.5,169.46,0.04227808]
[1740165920751,0.04356207,169.5,169.46,5.94317808]
[1740165920942,0.04356207,169.5,169.46,15.08656316]
[1740165922055,0.04356207,169.5,169.46,20.98716316]
[1740165922253,0.04356207,169.5,169.46,15.08656316]
[1740165924952,0.04356207,169.5,169.46,0.04227808]
[1740165930255,0.04356207,169.5,169.47,15.04428508]
[1740165931658,0.04356207,169.5,169.46,0.04227808]
[1740165931858,0.04356207,169.5,169.41,15.04428508]
[1740165932155,194.0,169.49,169.41,15.04428508]
[1740165932865,5.9012,169.46,169.41,15.04428508]
[1740165933068,0.0434949,169.47,169.38,15.04428508]
[1740165933270,194.0,169.49,169.38,15.04428508]
[1740165933466,0.03780298,169.44,169.38,15.04428508]
[1740165934668,0.03780298,169.44,169.41,15.04428508]
[1740165936758,7.7359,169.51,169.41,15.04428508]
[1740165936967,1.8366,169.51,169.45,15.04428508]
[1740165937970,0.04250503,169.5,169.46,0.03876128]
[1740165939070,5.9001,169.49,169.46,0.03876128]
[1740165939469,0.04250503,169.5,169.46,0.03876128]
[1740165939769,5.94230503,169.5,169.46,0.03876128]
[1740165940069,0.04250503,169.5,169.46,0.03876128]
[1740165940269,5.8999,169.49,169.46,0.03876128]
[1740165941870,0.04250503,169.5,169.46,0.03876128]
[1740165942566,5.94220503,169.5,169.46,0.03876128]
[1740165943070,0.04250503,169.5,169.47,15.04428508]
[1740165943468,0.04250503,169.5,169.49,5.8999]
[1740165945270,194.0,169.6,169.47,15.04428508]
[1740165945468,195.8783,169.6,169.53,15.04428508]
[1740165945867,195.8783,169.6,169.56,15.04428508]
[1740165946372,195.92176202,169.6,169.56,15.08674387]
[1740165947875,195.92176202,169.6,169.56,0.04245879]
[1740165948374,5.8967,169.59,169.56,0.04245879]
[1740165948769,195.92176202,169.6,169.49,15.04428508]
[1740165949269,5.8987,169.53,169.49,15.04428508]
[1740165949466,195.8783,169.6,169.49,15.04428508]
[1740165949671,194.99400013,169.59,169.49,15.04428508]
[1740165949866,0.0377913,169.56,169.53,0.04423859]
[1740165950573,0.0377913,169.56,169.49,15.04428508]
[1740165950772,0.0377913,169.56,169.46,15.04428508]
[1740165950966,5.8985,169.53,169.46,15.04428508]
[1740165951171,11.35124713,169.58,169.46,15.04428508]
[1740165951572,5.8984,169.54,169.46,15.04428508]
[1740165951768,0.04348815,169.54,169.46,15.04428508]
[1740165951974,0.04348815,169.54,169.49,15.04428508]
[1740165953173,0.04348815,169.54,169.52,15.04428508]
[1740165953974,194.0,169.59,169.52,15.04428508]
[1740165954475,5.8968,169.58,169.52,15.04428508]
[1740165955278,0.04013901,169.57,169.53,0.03913098]
[1740165956475,5.93743901,169.57,169.53,0.03913098]
[1740165956982,0.04013901,169.57,169.53,0.03913098]
[1740165962985,0.04013901,169.57,169.55,15.04428508]
[1740165963170,1.7964,169.65,169.55,15.04428508]
[1740165963373,5.8949,169.64,169.58,15.04428508]
[1740165963579,1.7964,169.65,169.58,15.04428508]
[1740165963979,5.895,169.63,169.58,15.04428508]
[1740165964282,1.7964,169.65,169.58,15.04428508]
[1740165964478,0.0445076,169.62,169.59,0.03925884]
[1740165970283,0.0445076,169.62,169.52,15.04428508]
[1740165970486,5.8967,169.59,169.52,15.04428508]
[1740165970679,15.04428508,169.64,169.52,15.04428508]
[1740165970880,15.04428508,169.64,169.5,154.36]
[1740165971079,5.8976,169.56,169.5,154.36]
[1740165971286,15.04428508,169.61,169.46,15.04428508]
[1740165971481,15.04428508,169.58,169.51,0.04404397]
[1740165971685,0.04389345,169.55,169.51,0.04404397]
[1740165971883,194.0,169.57,169.46,15.04428508]
[1740165972086,0.038656,169.55,169.51,0.04428694]
[1740165972285,0.038656,169.55,169.43,15.04428508]
[1740165972690,194.0,169.56,169.43,15.04428508]
[1740165973184,194.0,169.55,169.43,15.04428508]
[1740165973386,194.0,169.54,169.43,15.04428508]
[1740165973585,15.04428508,169.55,169.41,3.5663]
[1740165973586,0.04450329,169.51,169.41,3.5663]
[1740165974286,0.04450329,169.51,169.41,1.8266]
[1740165974486,0.04450329,169.51,169.4,15.04428508]
[1740165974887,16.80998508,169.52,169.4,15.04428508]
[1740165975192,0.03728627,169.47,169.37,169.36428508]
[1740165975587,5.9016,169.45,169.37,169.36428508]
[1740165975790,0.03728627,169.47,169.37,169.36428508]
[1740165975993,15.04428508,169.45,169.32,32.65442073]
[1740165976193,195.74796505,169.44,169.31,42.7674876]
[1740165976387,197.55456505,169.44,169.31,57.81177268]
[1740165976588,5.9027,169.41,169.31,57.81177268]
[1740165976793,197.5129,169.44,169.34,15.04428508]
[1740165977291,0.04489077,169.38,169.31,42.7674876]
[1740165977792,0.04489077,169.38,169.29,8.16360518]
[1740165978185,209.04428508,169.37,169.29,8.16360518]
[1740165978382,195.8837,169.36,169.29,8.16360518]
[1740165978682,195.8837,169.36,169.2,15.04428508]
[1740165978986,0.04044347,169.32,169.27,15.04428508]
[1740165979183,0.04044347,169.32,169.26,15.04428508]
[1740165979391,0.04044347,169.32,169.26,20.95198508]
[1740165979593,195.8837,169.36,169.18,8.16360518]
[1740165979894,0.04335001,169.31,169.26,5.9079]
[1740165980191,0.04335001,169.31,169.25,15.04428508]
[1740165980994,0.04335001,169.31,169.27,5.9072]
[1740165981293,0.04335001,169.31,169.28,15.04428508]
[1740165981495,0.04335001,169.31,169.28,20.95118508]
[1740165981697,195.8837,169.36,169.28,15.04428508]
[1740165981893,0.03779819,169.31,169.28,15.04428508]
[1740165982394,0.03779819,169.31,169.25,15.04428508]
[1740165982695,1.7499,169.35,169.25,15.04428508]
[1740165983084,0.03886259,169.3,169.25,15.04428508]
[1740165983694,0.03886259,169.3,169.26,5.9079]
[1740165983894,0.03886259,169.3,169.25,15.04428508]
[1740165984094,0.03886259,169.3,169.28,15.04428508]
[1740165984694,1.7499,169.35,169.31,5.9061]
[1740165984994,1.7499,169.35,169.31,20.95038508]
[1740165985197,1.7499,169.35,169.31,15.04428508]
[1740165985389,1.7499,169.35,169.3,15.04428508]
[1740165985997,0.03883073,169.34,169.31,0.03894397]
[1740165987595,0.03883073,169.34,169.33,5.9055]
[1740165988196,194.0,169.36,169.35,5.9048]
[1740165988398,1.7824,169.41,169.33,15.04428508]
[1740165988800,1.7824,169.41,169.36,15.04428508]
[1740165989298,0.04227909,169.4,169.37,0.04227538]
[1740165989895,0.04227909,169.4,169.39,5.9034]
[1740165990100,0.04227909,169.4,169.37,0.04227538]
[1740165990303,0.04227909,169.4,169.38,5.9034]
[1740165990693,0.04227909,169.4,169.37,0.04227538]